bitfinex/quotes_BTCUSD_20241124
["timestamp","ask_amount","ask_price","bid_price","bid_amount"]
[1732460473251,0.000858,96965.0,96964.0,0.24449213]
[1732460473461,0.000858,96965.0,96964.0,0.31668313]
[1732460474860,0.000858,96965.0,96964.0,0.34168313]
[1732460475088,0.000858,96965.0,96964.0,0.33968313]
[1732460476404,0.000858,96965.0,96964.0,0.38122036]
[1732460476652,0.000858,96965.0,96964.0,0.53122036]
[1732460477121,0.000858,96965.0,96964.0,0.52866018]
[1732460478277,0.000858,96965.0,96964.0,0.76042469]
[1732460478493,0.000858,96965.0,96964.0,1.0677657]
[1732460478945,0.000858,96965.0,96964.0,0.72866018]
[1732460482090,0.000858,96965.0,96964.0,0.92866018]
[1732460484578,0.000858,96965.0,96964.0,0.93066018]
[1732460485238,0.000858,96965.0,96964.0,0.92866018]
[1732460486094,0.000858,96965.0,96964.0,0.93066018]
[1732460488075,0.000858,96965.0,96964.0,0.72866018]
[1732460488294,0.000858,96965.0,96964.0,0.52866018]
[1732460488959,0.000858,96965.0,96964.0,0.73037618]
[1732460489702,0.000858,96965.0,96964.0,0.93237618]
[1732460491882,0.000858,96965.0,96964.0,0.96204806]
[1732460492114,0.000858,96965.0,96964.0,0.93237618]
[1732460492330,0.000858,96965.0,96964.0,0.96205404]
[1732460492802,0.000858,96965.0,96964.0,0.93237618]
[1732460493403,0.000858,96965.0,96964.0,0.96206306]
[1732460494145,0.000858,96965.0,96964.0,0.93237618]
[1732460494408,0.02543379,96986.0,96985.0,0.08654443]
[1732460494614,0.02543379,96986.0,96985.0,0.1885587]
[1732460494615,0.0236206,96986.0,96985.0,0.1885587]
[1732460498823,0.0236206,96986.0,96985.0,0.50375158]
[1732460499015,0.0236206,96986.0,96985.0,0.22961431]
[1732460500438,0.0236206,96986.0,96985.0,0.50375158]
[1732460500642,0.0236206,96986.0,96985.0,0.22961431]
[1732460501334,0.0236206,96986.0,96985.0,0.50375158]
[1732460501560,0.0236206,96986.0,96985.0,0.22961431]
[1732460501772,0.0236206,96986.0,96985.0,0.50375158]
[1732460502435,0.0236206,96986.0,96985.0,0.22961431]
[1732460502651,0.0236206,96986.0,96985.0,0.50368621]
[1732460503109,0.0236206,96986.0,96985.0,0.55278621]
[1732460503342,0.0236206,96986.0,96985.0,0.27871431]
[1732460506220,0.0236206,96986.0,96985.0,0.22961431]
[1732460506881,0.0236206,96986.0,96985.0,0.1885587]
[1732460507088,0.0008577,96986.0,96985.0,0.1885587]
[1732460507747,0.0008577,96986.0,96985.0,0.46288207]
[1732460507957,0.0008577,96986.0,96985.0,0.39070607]
[1732460508176,0.0008577,96986.0,96985.0,0.46288207]
[1732460508625,0.0008577,96986.0,96985.0,0.1885587]
[1732460512514,0.0008577,96986.0,96985.0,0.59346139]
[1732460512722,0.0008577,96986.0,96985.0,0.52128539]
[1732460512927,0.0008577,96986.0,96985.0,0.1163827]
[1732460513341,0.0008577,96986.0,96985.0,0.1885587]
[1732460514595,0.0008577,96986.0,96985.0,0.59416276]
[1732460515623,0.0008577,96986.0,96985.0,0.1163827]
[1732460515837,0.1039647,96986.0,96985.0,0.10201427]
[1732460516049,0.1039647,96986.0,96978.0,0.01436843]
[1732460516050,0.103115,96979.0,96978.0,0.01436843]
[1732460516251,0.103115,96979.0,96978.0,0.1163827]
[1732460516417,0.20623,96979.0,96967.0,0.30889812]
[1732460516623,0.103127,96967.0,96966.0,0.01436843]
[1732460517229,0.0796,96968.0,96966.0,0.01436843]
[1732460517230,0.0796,96968.0,96967.0,0.072189]
[1732460517442,0.0796,96968.0,96967.0,0.17420327]
[1732460517636,0.0796,96974.0,96967.0,0.10201427]
[1732460517862,0.0796,96974.0,96966.0,0.01436843]
[1732460517863,0.0796,96974.0,96968.0,0.17420227]
[1732460518247,0.0796,96974.0,96969.0,0.072188]
[1732460518591,0.0008577,96986.0,96979.0,0.07218]
[1732460518809,0.0008577,96986.0,96980.0,0.10201427]
[1732460519018,0.0008577,96986.0,96985.0,0.01436843]
[1732460519225,0.0008577,96986.0,96985.0,0.1163827]
[1732460519440,0.0008577,96986.0,96976.0,0.072182]
[1732460519441,0.103112,96981.0,96979.0,0.42062491]
[1732460519648,0.0008577,96986.0,96980.0,0.10201427]
[1732460519855,0.0008577,96986.0,96985.0,0.49289448]
[1732460520078,0.0008577,96986.0,96985.0,0.1885587]
[1732460520487,0.0008577,96986.0,96985.0,0.10201427]
[1732460520890,0.1039647,96986.0,96985.0,0.10201427]
[1732460521121,0.0804577,96986.0,96985.0,0.40642557]
[1732460521338,0.103111,96982.0,96981.0,0.40642557]
[1732460521569,0.0804577,96986.0,96978.0,0.40642557]
[1732460521776,0.1835647,96986.0,96985.0,0.27526885]
[1732460522224,0.0804577,96986.0,96981.0,0.072178]
[1732460522443,0.0804577,96986.0,96979.0,0.40642557]
[1732460522444,0.10311,96983.0,96979.0,0.40642557]
[1732460522645,0.103111,96982.0,96977.0,0.072181]
[1732460523090,0.0804577,96986.0,96985.0,0.01436843]
[1732460523091,0.0008577,96986.0,96985.0,0.01436843]
[1732460523303,0.0008577,96986.0,96985.0,0.1163827]
[1732460523512,0.0008577,96986.0,96985.0,0.10201427]
[1732460523513,0.1039647,96986.0,96985.0,0.10201427]
[1732460523754,0.0008577,96986.0,96985.0,0.10201427]
[1732460523972,0.1039647,96986.0,96985.0,0.50823744]
[1732460524229,0.1039647,96986.0,96985.0,0.10201427]
[1732460524438,0.103109,96984.0,96983.0,0.40628285]
[1732460524693,0.103109,96984.0,96979.0,0.40628285]
[1732460524694,0.206221,96983.0,96979.0,0.40628285]
[1732460524887,0.206225,96981.0,96974.0,0.40628285]
[1732460525117,0.206223,96982.0,96976.0,0.27540763]
[1732460525324,0.206223,96982.0,96979.0,0.22948609]
[1732460525548,0.103114,96980.0,96979.0,0.22950678]
[1732460525952,0.228214,96980.0,96979.0,0.22950678]
[1732460526268,0.228214,96980.0,96977.0,0.18360008]
[1732460526269,0.331329,96980.0,96977.0,0.18360008]
[1732460526471,0.103116,96978.0,96977.0,0.18360008]
[1732460526885,0.182516,96978.0,96977.0,0.18360008]
[1732460527319,0.103118,96976.0,96975.0,0.18360008]
[1732460528390,0.285634,96978.0,96974.0,0.18360008]
[1732460528391,0.103119,96975.0,96974.0,0.18360008]
[1732460529026,0.148821,96973.0,96972.0,0.18360008]
[1732460529244,0.105128,96966.0,96965.0,0.18360008]
[1732460529443,0.1251,96969.0,96964.0,0.001716]
[1732460529444,0.103129,96965.0,96964.0,0.001716]
[1732460529646,0.580229,96965.0,96964.0,0.001716]
[1732460532037,0.380229,96965.0,96964.0,0.001716]
[1732460532238,0.580229,96965.0,96964.0,0.001716]
[1732460533762,0.76586057,96965.0,96964.0,0.001716]
[1732460534213,0.86787484,96965.0,96964.0,0.001716]
[1732460534443,2.36760155,96965.0,96964.0,0.001716]
[1732460537461,0.86760155,96965.0,96964.0,0.001716]
[1732460538830,0.88838011,96965.0,96964.0,0.001716]
[1732460541108,0.88838011,96965.0,96957.0,0.0017158]
[1732460541109,0.15,96964.0,96927.0,0.0017144]
[1732460541272,0.103169,96928.0,96927.0,0.0247144]
[1732460541481,0.103169,96928.0,96927.0,0.0227144]
[1732460541689,0.103178,96919.0,96918.0,0.023]
[1732460541929,0.002,96938.0,96918.0,0.1393827]
[1732460541930,0.103178,96920.0,96918.0,0.1393827]
[1732460542070,0.206317,96938.0,96926.0,0.072219]
[1732460542438,0.103166,96931.0,96926.0,0.072219]
[1732460542554,0.206304,96944.0,96928.0,0.072218]
[1732460542764,0.04015308,96945.0,96929.0,0.072217]
[1732460543006,0.047,96949.0,96925.0,0.0974999]
[1732460543264,0.045,96949.0,96925.0,0.0974999]
[1732460543469,0.103164,96933.0,96928.0,0.023]
[1732460543674,0.206305,96944.0,96928.0,0.023]
[1732460543876,0.103169,96928.0,96926.0,0.023]
[1732460544017,0.10317,96928.0,96926.0,0.023]
[1732460544236,0.206327,96934.0,96926.0,0.023]
[1732460544427,0.206328,96933.0,96926.0,0.023]
[1732460544662,0.10317,96927.0,96926.0,0.023]
[1732460546110,0.103168,96929.0,96926.0,0.023]
[1732460546316,0.15,96947.0,96927.0,0.072218]
[1732460546687,0.103164,96933.0,96930.0,0.023]
[1732460546874,0.103164,96933.0,96925.0,0.11186833]
[1732460546875,0.103166,96931.0,96926.0,0.09522]
[1732460547096,0.08847503,96949.0,96926.0,0.023]
[1732460547256,0.10317,96927.0,96926.0,0.023]
[1732460547422,0.103164,96933.0,96926.0,0.023]
[1732460547816,0.10317,96927.0,96926.0,0.023]
[1732460548473,0.103168,96929.0,96926.0,0.023]
[1732460549331,0.10317,96927.0,96926.0,0.023]
[1732460549570,0.103169,96929.0,96926.0,0.023]
[1732460549797,0.103164,96933.0,96926.0,0.023]
[1732460550022,0.103169,96928.0,96926.0,0.023]
[1732460550542,0.103168,96929.0,96926.0,0.023]
[1732460551014,0.103169,96928.0,96926.0,0.023]
[1732460551266,0.206325,96934.0,96926.0,0.023]
[1732460551267,0.10317,96927.0,96926.0,0.023]
[1732460551985,0.206334,96930.0,96917.0,0.0491]
[1732460551986,0.206334,96930.0,96918.0,0.023]
[1732460552211,0.0473,96933.0,96913.0,0.01436843]
[1732460552430,0.103185,96913.0,96912.0,0.1180973]
[1732460553826,0.103185,96913.0,96912.0,0.1410973]
[1732460554821,0.103185,96913.0,96912.0,0.1360973]
[1732460555525,0.103185,96913.0,96912.0,0.12501427]
[1732460555752,0.103185,96913.0,96912.0,0.1360973]
[1732460556170,0.103185,96913.0,96912.0,0.12501427]
[1732460556388,0.103186,96912.0,96911.0,0.023]
[1732460559582,0.105186,96912.0,96911.0,0.023]
[1732460560030,0.44410397,96911.0,96910.0,0.001713]
[1732460560245,0.54611824,96911.0,96910.0,0.001713]
[1732460560505,2.24611824,96911.0,96910.0,0.001713]
[1732460561851,0.24314454,96911.0,96910.0,0.001713]
[1732460562118,0.09314454,96911.0,96910.0,0.024713]
[1732460562575,0.20636,96918.0,96911.0,0.023]
[1732460562833,0.0821,96931.0,96911.0,0.023]
[1732460563037,0.0473,96936.0,96911.0,0.023]
[1732460563286,0.18891697,96934.0,96911.0,0.023]
[1732460563753,0.103186,96913.0,96911.0,0.023]
[1732460564000,0.103186,96912.0,96911.0,0.023]
[1732460565825,0.14303955,96912.0,96911.0,0.023]
[1732460566306,0.103186,96912.0,96911.0,0.023]
[1732460569234,0.105186,96912.0,96911.0,0.023]
[1732460569456,0.103186,96912.0,96911.0,0.023]
[1732460570537,0.105186,96912.0,96911.0,0.023]
[1732460571809,0.103186,96912.0,96911.0,0.023]
[1732460573954,0.103186,96912.0,96911.0,0.024717]
[1732460574413,0.1040445,96912.0,96911.0,0.024717]
[1732460575881,0.1060445,96912.0,96911.0,0.024717]
[1732460576146,0.1871445,96912.0,96911.0,0.024717]
[1732460576811,0.1851445,96912.0,96911.0,0.024717]
[1732460577023,0.1040445,96912.0,96911.0,0.024717]
[1732460579059,0.0008585,96912.0,96911.0,0.024717]
[1732460579262,0.1040445,96912.0,96911.0,0.024717]
[1732460583012,0.1040445,96912.0,96911.0,0.001717]
[1732460583221,0.1871445,96912.0,96911.0,0.001717]
[1732460583426,0.1851445,96912.0,96911.0,0.001717]
[1732460583565,0.1871445,96912.0,96911.0,0.001717]
[1732460583767,0.1851445,96912.0,96911.0,0.001717]
[1732460584798,0.3351445,96912.0,96911.0,0.001717]
[1732460585061,0.62607574,96912.0,96911.0,0.001717]
[1732460585469,0.43915877,96912.0,96911.0,0.001717]
[1732460585675,0.62807574,96912.0,96911.0,0.001717]
[1732460586743,0.82807574,96912.0,96911.0,0.001717]
[1732460586963,0.85367429,96912.0,96911.0,0.001717]
[1732460587177,0.82807574,96912.0,96911.0,0.001717]
[1732460587401,2.32807574,96912.0,96911.0,0.001717]
[1732460587642,0.44411497,96901.0,96900.0,0.0017132]
[1732460587868,0.67102924,96901.0,96900.0,0.0017132]
[1732460588109,0.18891697,96887.0,96886.0,0.0017152]
[1732460588336,0.18891697,96887.0,96885.0,0.0017152]
[1732460588337,0.44413097,96886.0,96885.0,0.0017152]
[1732460588565,0.54614524,96886.0,96885.0,0.0017152]
[1732460588852,2.04614524,96886.0,96885.0,0.0017152]
[1732460590031,2.04614524,96886.0,96858.0,0.01108303]
[1732460590032,0.15,96865.0,96857.0,0.18364917]
[1732460590260,0.103247,96855.0,96854.0,0.18364917]
[1732460590508,0.10325,96852.0,96851.0,0.18364917]
[1732460590972,0.206498,96854.0,96850.0,0.18364917]
[1732460590973,0.103251,96851.0,96850.0,0.18364917]
[1732460591225,0.103251,96851.0,96848.0,0.22956146]
[1732460591226,0.206496,96854.0,96845.0,0.1947322]
[1732460591457,0.103251,96851.0,96850.0,0.01108303]
[1732460591670,0.23472127,96884.0,96858.0,0.01108303]
[1732460591885,0.04012754,96876.0,96859.0,0.023]
[1732460592107,0.23472127,96884.0,96859.0,0.023]
[1732460592108,0.15,96882.0,96863.0,0.023]
[1732460592332,0.15,96880.0,96862.0,0.18355675]
[1732460592534,0.10201427,96879.0,96855.0,0.18355675]
[1732460592740,0.103246,96856.0,96855.0,0.08928303]
[1732460593590,0.103246,96856.0,96855.0,0.023]
[1732460594031,0.10325,96852.0,96851.0,0.023]
[1732460594276,0.10325,96852.0,96850.0,0.01108303]
[1732460594277,0.2065,96853.0,96846.0,0.18355675]
[1732460594492,0.206489,96857.0,96842.0,0.18355675]
[1732460594708,0.206489,96857.0,96839.0,0.19463978]
[1732460594913,0.103265,96838.0,96837.0,0.01108303]
[1732460596459,0.103265,96838.0,96837.0,0.03408303]
[1732460598147,0.103265,96838.0,96837.0,0.03494073]
[1732460604944,0.103265,96838.0,96837.0,0.0008577]
[1732460614325,0.103265,96838.0,96837.0,0.0238577]
[1732460615012,0.103263,96840.0,96837.0,0.1071577]
[1732460615263,0.39539197,96864.0,96842.0,0.023]
[1732460615264,0.15,96863.0,96842.0,0.023]
[1732460615437,0.103256,96847.0,96842.0,0.023]
[1732460615680,0.103256,96847.0,96842.0,0.095282]
[1732460615897,0.15,96858.0,96845.0,0.03408303]
[1732460616154,0.15,96858.0,96837.0,0.1564427]
[1732460616155,0.03976783,96856.0,96849.0,0.023]
[1732460616400,0.287357,96873.0,96849.0,0.023]
[1732460616401,0.0809,96873.0,96851.0,0.01108303]
[1732460616629,0.04006824,96868.0,96857.0,0.072271]
[1732460616838,0.10324,96861.0,96860.0,0.023]
[1732460617081,0.0397739,96873.0,96862.0,0.023]
[1732460617297,0.206458,96872.0,96862.0,0.023]
[1732460617512,0.206464,96870.0,96865.0,0.023]
[1732460617723,0.04287009,96878.0,96865.0,0.023]
[1732460617724,0.103235,96866.0,96865.0,0.023]
[1732460619254,0.103232,96869.0,96868.0,0.03408303]
[1732460621485,0.103247,96855.0,96853.0,0.18284709]
[1732460621716,0.04174564,96878.0,96858.0,0.01108303]
[1732460621943,0.103242,96859.0,96858.0,0.01108303]
[1732460622849,0.103242,96859.0,96858.0,0.03408303]
[1732460623061,0.103241,96861.0,96859.0,0.023]
[1732460623315,0.356428,96886.0,96859.0,0.023]
[1732460623560,0.103239,96862.0,96861.0,0.023]
[1732460626978,0.19091697,96888.0,96861.0,0.023]
[1732460627178,0.103239,96862.0,96861.0,0.023]
[1732460628384,0.103239,96862.0,96847.0,0.072278]
[1732460628385,0.103246,96856.0,96855.0,0.023]
[1732460628585,0.103251,96851.0,96850.0,0.023]
[1732460628816,0.206481,96861.0,96846.0,0.023]
[1732460629040,0.206481,96861.0,96846.0,0.03408303]
[1732460629041,0.103255,96847.0,96846.0,0.03408303]
[1732460631035,0.206465,96869.0,96846.0,0.03408303]
[1732460631036,0.103249,96853.0,96851.0,0.023]
[1732460631265,0.103246,96856.0,96855.0,0.03408303]
[1732460632147,0.103246,96856.0,96855.0,0.023]
[1732460632353,0.206488,96858.0,96857.0,0.01108303]
[1732460632571,0.309731,96858.0,96857.0,0.023]
[1732460632809,0.10325,96852.0,96851.0,0.023]
[1732460633694,0.10325,96852.0,96851.0,0.29877594]
[1732460633894,0.10325,96852.0,96851.0,0.30986324]
[1732460634111,0.10325,96852.0,96851.0,0.03408303]
[1732460634330,0.0411431,96864.0,96851.0,0.03408303]
[1732460634536,0.23711697,96885.0,96862.0,0.25283813]
[1732460634537,0.103238,96863.0,96862.0,0.25283813]
[1732460634750,0.103238,96863.0,96862.0,0.023]
[1732460636328,0.103255,96847.0,96846.0,0.01194103]
[1732460637656,0.103255,96847.0,96846.0,0.023858]
[1732460637995,0.103255,96847.0,96846.0,0.000858]
[1732460642239,0.380455,96847.0,96846.0,0.000858]
[1732460642438,0.5117543,96847.0,96846.0,0.000858]
[1732460642699,0.333755,96847.0,96846.0,0.000858]
[1732460642937,0.253255,96847.0,96846.0,0.000858]
[1732460643140,0.103255,96847.0,96846.0,0.000858]
[1732460643354,0.206504,96851.0,96846.0,0.000858]
[1732460643559,0.103253,96850.0,96849.0,0.01108303]
[1732460643784,0.103253,96850.0,96849.0,0.023]
[1732460644021,0.103255,96847.0,96846.0,0.000858]
[1732460644442,0.28254003,96847.0,96846.0,0.000858]
[1732460644651,0.3865543,96847.0,96846.0,0.000858]
[1732460644864,0.35526927,96847.0,96846.0,0.000858]
[1732460645065,0.35726927,96847.0,96846.0,0.000858]
[1732460645479,0.35526927,96847.0,96846.0,0.000858]
[1732460645683,0.35726927,96847.0,96846.0,0.000858]
[1732460646231,1.85726927,96847.0,96846.0,0.000858]
[1732460648854,1.85526927,96847.0,96846.0,0.000858]
[1732460650346,1.85726927,96847.0,96846.0,0.000858]
[1732460651209,1.85526927,96847.0,96846.0,0.000858]
[1732460652964,0.35526927,96847.0,96846.0,0.000858]
[1732460653400,1.85526927,96847.0,96846.0,0.000858]
[1732460654307,1.85726927,96847.0,96846.0,0.000858]
[1732460654514,1.88426687,96847.0,96846.0,0.000858]
[1732460654725,2.07318384,96847.0,96846.0,0.000858]
[1732460654936,2.12228384,96847.0,96846.0,0.000858]
[1732460656314,0.62228384,96847.0,96846.0,0.000858]
[1732460656973,2.09528624,96847.0,96846.0,0.000858]
[1732460659208,2.09328624,96847.0,96846.0,0.000858]
[1732460660091,2.09528624,96847.0,96846.0,0.000858]
[1732460663786,0.103265,96838.0,96837.0,0.0008577]
[1732460664030,0.43787927,96838.0,96837.0,0.0008577]
[1732460664251,0.65579384,96838.0,96837.0,0.0008577]
[1732460664708,0.70479384,96838.0,96837.0,0.0008577]
[1732460665409,0.67779624,96838.0,96837.0,0.0008577]
[1732460665862,2.17779624,96838.0,96837.0,0.0008577]
[1732460666719,2.21791841,96838.0,96837.0,0.0008577]
[1732460668109,2.44491601,96838.0,96837.0,0.0008577]
[1732460669197,2.41791841,96838.0,96837.0,0.0008577]
[1732460669873,0.14338717,96838.0,96837.0,0.0008577]
[1732460671007,0.39540597,96858.0,96837.0,0.0008577]
[1732460671008,0.103257,96846.0,96841.0,0.01108303]
[1732460671227,0.03962177,96850.0,96841.0,0.01108303]
[1732460671450,0.206509,96848.0,96842.0,0.18409548]
[1732460671661,0.10201427,96866.0,96844.0,0.18409548]
[1732460672105,0.10201427,96866.0,96839.0,0.1227]
[1732460672106,0.03980044,96867.0,96853.0,0.01108303]
[1732460672332,0.19966952,96884.0,96853.0,0.01108303]
[1732460672333,0.01075255,96884.0,96857.0,0.01108303]
[1732460672539,0.20646,96871.0,96860.0,0.01108303]
[1732460672772,0.103237,96865.0,96860.0,0.01108303]
[1732460673010,0.103238,96863.0,96860.0,0.19517851]
[1732460673221,0.10753421,96873.0,96860.0,0.19517851]
[1732460673432,0.10753421,96873.0,96861.0,0.18409548]
[1732460673433,0.103239,96863.0,96861.0,0.18409548]
[1732460673660,0.103239,96862.0,96860.0,0.19517851]
[1732460673873,0.10324,96861.0,96860.0,0.19517851]
[1732460674099,0.103241,96860.0,96859.0,0.23011935]
[1732460674323,0.103241,96860.0,96851.0,0.0457]
[1732460674324,0.0269976,96868.0,96856.0,0.18351091]
[1732460674537,0.103247,96855.0,96854.0,0.077]
[1732460676459,0.14306848,96855.0,96854.0,0.077]
[1732460678842,0.103247,96855.0,96854.0,0.077]
[1732460681074,0.0017166,96870.0,96854.0,0.08808303]
[1732460681295,0.103245,96857.0,96855.0,0.22960495]
[1732460681508,0.103244,96857.0,96856.0,0.1837588]
[1732460681931,0.103247,96855.0,96854.0,0.27184183]
[1732460682153,0.103247,96855.0,96854.0,0.08808303]
[1732460683934,0.206467,96868.0,96854.0,0.08808303]
[1732460683935,0.206468,96867.0,96854.0,0.08808303]
[1732460684241,0.15,96871.0,96855.0,0.18369828]
[1732460684333,0.103244,96858.0,96855.0,0.18369828]
[1732460684541,0.103246,96856.0,96855.0,0.18369828]
[1732460684751,0.20647,96866.0,96854.0,0.08808303]
[1732460684970,0.103246,96856.0,96854.0,0.08808303]
[1732460685199,0.206475,96864.0,96855.0,0.18369523]
[1732460685437,0.103245,96857.0,96854.0,0.27177826]
[1732460685652,0.103247,96855.0,96854.0,0.08808303]
[1732460686296,0.103247,96855.0,96854.0,0.27177826]
[1732460686504,0.20647,96867.0,96854.0,0.27177826]
[1732460686726,0.206472,96865.0,96854.0,0.27177826]
[1732460686958,0.20647,96867.0,96854.0,0.08808303]
[1732460686959,0.103246,96856.0,96854.0,0.08808303]
[1732460687182,0.103247,96855.0,96854.0,0.08808303]
[1732460687619,0.309735,96857.0,96854.0,0.08808303]
[1732460687836,0.103246,96856.0,96854.0,0.08808303]
[1732460688550,0.103247,96855.0,96854.0,0.08808303]
[1732460690206,0.206491,96857.0,96850.0,0.18369523]
[1732460690464,0.04130639,96857.0,96846.0,0.26675353]
[1732460690703,0.04130639,96857.0,96847.0,0.18382871]
[1732460690945,0.103253,96850.0,96848.0,0.18382871]
[1732460691199,0.103253,96849.0,96848.0,0.18382871]
[1732460691455,0.04134592,96870.0,96853.0,0.08335603]
[1732460691456,0.103244,96858.0,96853.0,0.08335603]
[1732460691734,0.04134592,96870.0,96853.0,0.08335603]
[1732460691735,0.103248,96854.0,96853.0,0.01108303]
[1732460692736,0.103246,96856.0,96853.0,0.01108303]
[1732460692966,0.103247,96855.0,96853.0,0.01108303]
[1732460693220,0.0017166,96867.0,96853.0,0.01108303]
[1732460693449,0.103246,96856.0,96853.0,0.01108303]
[1732460693698,0.0017166,96867.0,96853.0,0.01108303]
[1732460693956,0.103247,96855.0,96853.0,0.01108303]
[1732460694426,0.206475,96864.0,96853.0,0.01108303]
[1732460694651,0.0017166,96867.0,96853.0,0.01108303]
[1732460694882,0.103247,96855.0,96853.0,0.19487914]
[1732460695120,0.206483,96860.0,96853.0,0.19487914]
[1732460695121,0.103244,96858.0,96853.0,0.19487914]
[1732460695366,0.103246,96856.0,96853.0,0.01108303]
[1732460695603,0.0017166,96867.0,96858.0,0.07227]
[1732460695831,0.0017166,96867.0,96852.0,0.18379611]
[1732460695832,0.103249,96853.0,96852.0,0.18379611]
[1732460696062,0.10325,96852.0,96851.0,0.22978588]
[1732460696269,0.10325,96852.0,96846.0,0.0830583]
[1732460696270,0.103252,96850.0,96849.0,0.18377321]
[1732460696489,0.103253,96849.0,96848.0,0.18377321]
[1732460696708,0.103255,96847.0,96846.0,0.23064418]
[1732460696973,0.103255,96847.0,96846.0,0.0008583]
[1732460697408,0.103255,96847.0,96846.0,0.18465575]
[1732460697631,0.103255,96847.0,96846.0,0.0008583]
[1732460698105,0.18891697,96838.0,96837.0,0.0008577]
[1732460698329,0.54419624,96838.0,96837.0,0.0008577]
[1732460698757,2.04419624,96838.0,96837.0,0.0008577]
[1732460699835,2.04619624,96838.0,96837.0,0.0008577]
[1732460700278,2.04419624,96838.0,96837.0,0.0008577]
[1732460700525,2.04619624,96838.0,96837.0,0.0008577]
[1732460700786,1.85527927,96838.0,96837.0,0.0008577]
[1732460704563,2.12209624,96838.0,96837.0,7e-07]
[1732460705229,2.12209624,96838.0,96837.0,0.000859]
[1732460705230,2.12009624,96838.0,96837.0,0.000859]
[1732460705454,2.12209624,96838.0,96837.0,0.000859]
[1732460707860,2.14226393,96838.0,96837.0,0.000859]
[1732460708552,2.16926153,96838.0,96837.0,0.000859]
[1732460709000,2.16926153,96838.0,96837.0,1e-06]
[1732460709438,0.34091697,96833.0,96832.0,1e-06]
[1732460709674,0.54620124,96833.0,96832.0,1e-06]
[1732460709912,0.57319884,96833.0,96832.0,1e-06]
[1732460710140,2.11829884,96833.0,96832.0,1e-06]
[1732460710360,2.09130124,96833.0,96832.0,1e-06]
[1732460711477,2.09130124,96833.0,96829.0,0.001716]
[1732460711478,0.29418997,96830.0,96829.0,0.001716]
[1732460711693,0.54620424,96830.0,96829.0,0.001716]
[1732460712114,2.04620424,96830.0,96829.0,0.001716]
[1732460712537,0.253289,96815.0,96814.0,0.001717]
[1732460712755,0.35530327,96815.0,96814.0,0.001717]
[1732460715561,0.39577062,96815.0,96814.0,0.001717]
[1732460716283,0.39777062,96815.0,96814.0,0.001717]
[1732460716515,0.39577062,96815.0,96814.0,0.001717]
[1732460717014,0.39777062,96815.0,96814.0,0.001717]
[1732460717729,0.39577062,96815.0,96814.0,0.001717]
[1732460718677,0.39777062,96815.0,96814.0,0.001717]
[1732460718916,1.89777062,96815.0,96814.0,0.001717]
[1732460719841,1.89577062,96815.0,96814.0,0.001717]
[1732460720484,1.89777062,96815.0,96814.0,0.001717]
[1732460720917,1.89777062,96815.0,96794.0,0.0822]
[1732460720918,0.103311,96795.0,96794.0,0.0822]
[1732460721164,0.103311,96795.0,96788.0,0.0008577]
[1732460721165,0.103317,96789.0,96788.0,0.0008577]
[1732460721667,0.253317,96789.0,96788.0,0.0008577]
[1732460722138,0.35533127,96789.0,96788.0,0.0008577]
[1732460723248,1.85533127,96789.0,96788.0,0.0008577]
[1732460725123,2.11535973,96789.0,96788.0,0.0008577]
[1732460725336,2.14227185,96789.0,96788.0,0.0008577]
[1732460726256,2.11335973,96789.0,96788.0,0.0008577]
[1732460726472,2.08740868,96789.0,96788.0,0.0008577]
[1732460726685,2.11535973,96789.0,96788.0,0.0008577]
[1732460726927,2.11535973,96789.0,96788.0,7e-07]
[1732460727151,2.42107185,96789.0,96788.0,7e-07]
[1732460727365,2.47027185,96789.0,96788.0,7e-07]
[1732460727825,3.00757185,96789.0,96788.0,7e-07]
[1732460728974,2.98065973,96789.0,96788.0,7e-07]
[1732460730529,2.98065973,96789.0,96764.0,0.000858]
[1732460730530,0.253343,96765.0,96764.0,0.000858]
[1732460730789,0.35535727,96765.0,96764.0,0.000858]
[1732460731298,0.35535727,96765.0,96734.0,0.01108303]
[1732460731299,0.103363,96746.0,96734.0,0.01108303]
[1732460731555,0.103363,96746.0,96731.0,0.0001451]
[1732460731556,0.28100851,96746.0,96740.0,0.0008583]
[1732460731791,0.35737727,96746.0,96740.0,0.0008583]
[1732460732024,0.38302278,96746.0,96740.0,0.0008583]
[1732460732735,0.3963115,96746.0,96740.0,0.0008583]
[1732460732958,1.8963115,96746.0,96740.0,0.0008583]
[1732460733856,1.8983115,96746.0,96740.0,0.0008583]
[1732460734310,1.8963115,96746.0,96740.0,0.0008583]
[1732460734793,0.3963115,96746.0,96740.0,0.0008583]
[1732460735028,0.206719,96750.0,96745.0,0.08016]
[1732460735304,0.206675,96771.0,96748.0,0.01108303]
[1732460735305,0.103361,96749.0,96748.0,0.01108303]
[1732460735756,0.206706,96756.0,96749.0,0.01108303]
[1732460735989,0.406639,96787.0,96755.0,0.01108303]
[1732460735990,0.04060307,96771.0,96755.0,0.01108303]
[1732460736225,0.206665,96775.0,96766.0,0.01108303]
[1732460736516,0.10201427,96788.0,96769.0,0.01108303]
[1732460736751,0.10201427,96788.0,96767.0,0.0801]
[1732460736752,0.03996496,96789.0,96776.0,0.01108303]
[1732460736985,0.10201427,96803.0,96785.0,0.01108303]
[1732460737225,0.103317,96789.0,96786.0,0.09118303]
[1732460737462,0.05117365,96805.0,96789.0,0.01108303]
[1732460737740,0.103319,96787.0,96786.0,0.0801]
[1732460737991,0.103319,96787.0,96786.0,0.09118303]
[1732460738460,0.103319,96787.0,96786.0,0.0801]
[1732460738712,0.103319,96787.0,96784.0,0.0494]
[1732460738713,0.206636,96789.0,96784.0,0.0494]
[1732460738953,0.103321,96785.0,96784.0,0.0494]
[1732460741921,0.103321,96785.0,96784.0,0.06048303]
[1732460742659,0.002,96811.0,96784.0,0.06048303]
[1732460742660,0.356626,96793.0,96784.0,0.06048303]
[1732460742906,0.10332,96787.0,96784.0,0.06048303]
[1732460743142,0.15,96801.0,96791.0,0.01108303]
[1732460743372,0.15,96801.0,96796.0,0.01108303]
[1732460743373,0.103308,96797.0,96796.0,0.01108303]
[1732460743605,0.253308,96797.0,96796.0,0.01108303]
[1732460743840,0.15,96797.0,96796.0,0.01108303]